Cogmind - Beta 17 @@@ ROGUE MODE // 2026.06.30 @ 20:33:24 Player: THN-L0C Result: Destroyed by CP-HA5(R) with Subdweller Beam Cannon Performance ------------- Evolutions (0) 0 Regions Visited (2) 400 Robots Destroyed (25) 125 Value Destroyed (438) 438 Prototype IDs (14) 280 Alien Tech Used (0) 0 Bonus (0) 0 TOTAL SCORE: 1243 Bonus ------- None Cogmind --------- Core Integrity 0/250 Matter 200/300 Energy 51/100 System Corruption 0% Temperature Cool (9) Movement Core (750) Ox14 Location -10/Subcaves Parts ------- > --- POWER (1) -------- (None) > --- PROPULSION (2) --- (None) > --- UTILITY (2) ------ High-capacity Storage Unit > --- WEAPON (2) ------- Subdweller Machine Gun > --- INVENTORY (20) --- Light Treads Compact Wheel Compact Wheel Small Matter Pod (50) Medium Matter Pod (35) Improved Terrain Scanner Seismic Detector Seismic Detector Gun Armor Self-contained Transmogrifier EM Shotgun Grenade Launcher Datajack Mining Laser Multitool Mining Claw Shrapnel Trap Peak State ------------ > --- POWER ------------ Ion Engine > --- PROPULSION ------- Light Treads Light Treads > --- UTILITY ---------- High-capacity Storage Unit Improved Terrain Scanner > --- WEAPON ----------- Assault Rifle Mining Claw > --- INVENTORY -------- Light Treads Compact Wheel Compact Wheel Small Matter Pod Medium Matter Pod Seismic Detector Seismic Detector Light Armor Plating Gun Armor Self-contained Transmogrifier EM Shotgun EM Shotgun Assault Rifle Assault Rifle Subdweller Machine Gun Battle Cannon Grenade Launcher Datajack Mining Laser Shrapnel Trap [Rating: 13] Favorites ----------- Power Ion Engine Engine Ion Engine Propulsion Light Treads Treads Light Treads Wheel Compact Wheel Utility High-capacity Storage Unit Device Seismic Detector Storage High-capacity Storage Unit Protection Light Armor Plating Weapon Assault Rifle Energy Gun EM Shotgun Ballistic Gun Assault Rifle Ballistic Cannon Battle Cannon Launcher Grenade Launcher Special Weapon Mining Laser Slashing Weapon Mining Claw Build | -11 -10 -10 ------- Run | Yrd Mat Sub Slots Evolved . | . . . Power . | . . . Propulsion . | . . . Utility . | . . . Weapon . | . . . Parts Attached 23 | 7 6 10 Power 2 | 1 . 1 Engine 2 | 1 . 1 Core . | . . . Reactor . | . . . Propulsion 5 | 2 1 2 Treads 2 | . . 2 Leg . | . . . Wheel 3 | 2 1 . Hover . | . . . Flight . | . . . Utility 5 | 2 1 2 Device 2 | 1 . 1 Storage 2 | 1 1 . Processor . | . . . Hackware . | . . . Protection 1 | . . 1 Artifact . | . . . Weapon 11 | 2 4 5 Energy Gun 1 | . . 1 Energy Cannon . | . . . Ballistic Gun 5 | 2 1 2 Ballistic Cannon 1 | . . 1 Launcher 1 | . 1 . Special Weapon 2 | . 1 1 Impact Weapon . | . . . Slashing Weapon 1 | . 1 . Piercing Weapon . | . . . Special Melee Weapon . | . . . Unidentified Prototypes . | . . . Parts Lost 10 | . . 10 Power 2 | . . 2 Propulsion 2 | . . 2 Utility 1 | . . 1 Weapon 5 | . . 5 Highest Loss Streak 8 | . . 8 To Critical Strikes . | . . . Average Backups 15 | 2 11 18 Power . | . . . Propulsion 2 | 1 2 3 Utility 4 | . 3 5 Weapon 6 | . 4 9 Tool/Special . | . . . Unused Backups 12 | . 1 11 Power . | . . . Propulsion 1 | . . 1 Utility 4 | . . 4 Weapon 5 | . 1 4 Tool/Special 2 | . . 2 Average Slot Usage (%) 99 | . 100 98 Engine 13 | . 14 13 Treads 15 | . . 25 Wheel 12 | . 28 2 Device 10 | . 14 8 Storage 14 | . 14 14 Protection 3 | . . 5 Ballistic Gun 23 | . 22 24 Launcher 1 | . 2 . Slashing Weapon 2 | . 1 2 Peak Build Rating 13 | 7 9 13 Average Rating 9 | 5 8 10 On Entrance 5 | . 7 9 Avg Prop Armor Cover (%) . | . . . Naked Turns . | . . . Heaviest Build 52 | 14 51 52 Greatest Support 40 | 26 32 40 Greatest Overweight (x) 1 | 1 1 1 Average Overweight (x) . | . . 1 Largest Inventory Capacity 20 | 8 20 20 Average Capacity 17 | 7 16 20 Most Carried 20 | 5 19 20 Average Carried 15 | 2 11 19 Final Capacity 20 | 8 20 20 Final Carried 19 | 5 19 17 Class Distribution -------------------- 100% | Mutant Dominant Class ---------------- Mutant | -10/Materials Mutant | -10/Subcaves Resources | -11 -10 -10 ----------- Run | Yrd Mat Sub Matter Collected 896 | 281 163 452 Remotely . | . . . Salvage Created 703 | 139 210 354 Parts 56 | 11 19 26 Haulers Intercepted 2 | . 2 . Recyclers Shooed 2 | 1 1 . Parts Field Recycled . | . . . Retrieved Matter . | . . . Parts Self-Destructed 6 | . . 6 Prevented . | . . . Parts Restored . | . . . Kills | -11 -10 -10 ------- Run | Yrd Mat Sub Combat Hostiles Destroyed 17 | . 8 9 Guns 11 | . 3 8 Cannons 1 | . . 1 AOE 5 | . 5 . Classes Destroyed 8 | 2 4 2 Worker 1 | . 1 . Tunneler 3 | 3 . . Hauler 2 | . 2 . Recycler 1 | 1 . . Watcher 1 | . 1 . Swarmer 10 | . 8 2 Artisan 1 | . . 1 Subdweller 7 | . . 7 Best Kill Streak 6 | 3 6 2 Combat Bots Only 5 | . 5 2 Max Kills in Single Turn 3 | 1 3 1 Gunslinging . | . . . Exploded 3 | . 3 . Melee . | . . . Uniques/NPCs Destroyed . | . . . Combat | -11 -10 -10 -------- Run | Yrd Mat Sub Hostile Shots Fired 85 | . 24 61 Missed 24 | . 9 15 Hits 61 | . 15 46 Projectile 61 | . 15 46 AOE 6 | . . 6 Critical Strikes 1 | . . 1 Damage Taken 1402 | . 140 1262 Core 275 | . 10 265 Absorbed by Shields . | . . . Core Remaining (%) 100 | 100 . . Volleys Fired 74 | 10 19 45 Largest 2 | 2 2 2 Hottest 100 | 40 100 100 Shots Fired 131 | 20 33 78 Gun 115 | 20 28 67 Cannon 5 | . . 5 Launcher 3 | . 3 . Special 8 | . 2 6 Kinetic 117 | 20 28 69 Thermal 8 | . 2 6 Explosive 3 | . 3 . Electromagnetic 3 | . . 3 Robot Hit Streak 17 | 12 11 17 Robot Miss Streak 4 | 2 3 4 Penetration Max . | . . . Secondary Targets 3 | . 1 2 Max Gunslinging Chain 1 | . 1 1 Shots Hit Robots 92 | 14 22 56 Core Hits 36 | 4 12 20 Critical Kills . | . . . Critical Parts Destroyed . | . . . Critical Strikes . | . . . Melee Attacks 3 | . 1 2 Impact . | . . . Slashing 3 | . 1 2 Piercing . | . . . Sneak Attacks . | . . . Combat Hostiles . | . . . Follow-up Attacks . | . . . Damage Inflicted 1400 | 162 517 721 Guns 1059 | 162 256 641 Cannons 80 | . . 80 Explosions 261 | . 261 . Melee . | . . . Ramming . | . . . Kinetic 1099 | 162 256 681 Thermal . | . . . Explosive 261 | . 261 . Electromagnetic 40 | . . 40 Impact . | . . . Slashing . | . . . Piercing . | . . . Highest Corruption . | . . . Average Corruption . | . . . Corruption Purged . | . . . Corruption Blocked . | . . . Overload Shots . | . . . Overflow Damage . | . . . Projectiles . | . . . Explosions . | . . . Melee . | . . . Knockbacks 2 | . . 2 Impact . | . . . Kinetic 2 | . . 2 Secondary . | . . . Self-Inflicted Damage 3 | . 3 . Shots 1 | . 1 . Rammed . | . . . Targets Rammed . | . . . Kicked . | . . . Crushed . | . . . Highest Temperature 285 | . 40 285 Average Temperature 95 | . 22 168 Received Heat Transfer 501 | . . 501 Siege Activations . | . . . Martial Activations . | . . . Shielding Activations . | . . . Robots Disrupted . | . . . Combat Hostiles . | . . . Robots Corrupted . | . . . Combat Hostiles . | . . . Parts Fried . | . . . Impact Corruptions . | . . . Robots Melted . | . . . Combat Hostiles . | . . . Parts Melted 1 | . . 1 Heat Transferred . | . . . Parts Sabotaged . | . . . Parts Stolen . | . . . Parts Stripped . | . . . Power Chain Reactions . | . . . Alert | -11 -10 -10 ------- Run | Yrd Mat Sub Maximum Alert Level . | . . . Low Security (%) 100 | 100 100 . Level 1 . | . . . Level 2 . | . . . Level 3 . | . . . Level 4 . | . . . Level 5 . | . . . High Security . | . . . Max Security . | . . . Peak Influence 117 | 5 117 . Initial . | . . . Average 39 | 1 44 . Influence Increases 341 | 20 271 50 Destroy 0b10 Robot/C 200 | . 160 40 Destroy 0b10 Robot/NC 40 | 20 20 . Destroy Leader 36 | . 26 10 Successful Hack 20 | . 20 . Disable Machine 15 | . 15 . Destroy Structure 15 | . 15 . Lose Combat Pursuer 15 | . 15 . Influence Decreases 341 | 20 271 50 Time Decay 341 | 20 271 50 Squads Dispatched 1 | . 1 . Investigation 1 | . 1 . Extermination . | . . . Reinforcement . | . . . Assault . | . . . Garrison . | . . . Intercept . | . . . Searches Triggered . | . . . Construction Impeded . | . . . Haulers Reinforced . | . . . Active Scanning Responses . | . . . Cargo Convoy Interrupts . | . . . Stealth | -11 -10 -10 --------- Run | Yrd Mat Sub Distress Signals 1 | . 1 . Communications Jammed . | . . . Distress Signals . | . . . Times Spotted 23 | . 13 10 Peak Tracking Total 3 | . 3 3 Tactical Retreats 1 | . 1 . Traps | -11 -10 -10 ------- Run | Yrd Mat Sub Traps Triggered 3 | . 2 1 Indirectly . | . . . Trap Hack Attempts . | . . . Triggered . | . . . Disarmed . | . . . Reprogrammed . | . . . Reused . | . . . Traps Extracted . | . . . Installed . | . . . Triggered . | . . . Most Traps Carried 1 | . . 1 Machines | -11 -10 -10 ---------- Run | Yrd Mat Sub Machines Disabled 2 | . 1 1 Max in Single Turn 1 | . 1 1 Machines Repaired . | . . . Machines Dismantled . | . . . Machines Sabotaged . | . . . Overloaded Fab Kills . | . . . Hacking | -11 -10 -10 --------- Run | Yrd Mat Sub Machines Accessed 7 | . 6 1 Terminals 6 | . 6 . Fabricators . | . . . Repair Stations . | . . . Recycling Units . | . . . Scanalyzers . | . . . Garrison Access . | . . . Total Hacks 28 | . 19 9 Successful 21 | . 12 9 Failed 7 | . 7 . Catastrophic 1 | . 1 . Database Lockouts . | . . . Manual 17 | . 17 . Terminals 19 | . 19 . Fabricators . | . . . Repair Stations . | . . . Recycling Units . | . . . Scanalyzers . | . . . Garrison Access . | . . . Terminal Hacks 11 | . 2 9 Record 8 | . . 8 Emergency Access Points 1 | . 1 . Terminal Index 1 | . 1 . Proto ID Catalog 1 | . . 1 Fabricator Hacks . | . . . Repair Station Hacks . | . . . Recycling Unit Hacks . | . . . Scanalyzer . | . . . Garrison Access Hacks . | . . . Unauthorized Hacks 10 | . 10 . Terminals 10 | . 10 . Botnet 4 | . 4 . Operators 1 | . 1 . Skim 5 | . 5 . Fabricators . | . . . Repair Stations . | . . . Recycling Units . | . . . Scanalyzers . | . . . Garrison Access . | . . . Data Cores Recovered . | . . . Used . | . . . Hacking Detections 6 | . 6 . Full Trace Events . | . . . Feedback Events . | . . . Feedback Blocked . | . . . Robot Schematics Acquired . | . . . Robots Built . | . . . Authchips . | . . . Time . | . . . Total Robot Build Rating . | . . . Part Schematics Acquired . | . . . Parts Built . | . . . Authchips . | . . . Time . | . . . Total Part Build Rating . | . . . Part Studies Acquired . | . . . Parts Repaired . | . . . Time . | . . . Parts Recycled . | . . . Recycled Matter . | . . . Retrieved Matter . | . . . Retrieved Components . | . . . Parts Scanalyzed . | . . . Part Schematics Acquired . | . . . Parts Damaged . | . . . Bothacking | -11 -10 -10 ------------ Run | Yrd Mat Sub Used RIF Installer . | . . . Robots Hacked . | . . . Non-combat . | . . . Combat . | . . . Robot Hacks Applied . | . . . Relay Couplers Released . | . . . Fabnet Peak Effective % . | . . . Robots Rewired . | . . . Allies Hacked . | . . . Hacks Repelled . | . . . Allies | -11 -10 -10 -------- Run | Yrd Mat Sub Total Allies . | . . . Largest Group . | . . . Highest-Rated Group . | . . . Highest-Rated Ally . | . . . Total Orders . | . . . Ally Attacks . | . . . Total Damage . | . . . Kills . | . . . Allies Corrupted . | . . . Allies Melted . | . . . Intel | -11 -10 -10 ------- Run | Yrd Mat Sub Active Infowar (turns) 1638 | 44 861 733 Terrain 513 | . . 513 Seismic 1125 | 44 861 220 Robot Analysis Total . | . . . Derelict Logs Recovered 1 | . . 1 Drone Launches . | . . . Drone Recoveries . | . . . Exploration | -11 -10 -10 ------------- Run | Yrd Mat Sub Turns Passed 2198 | 109 861 1228 Spaces Moved 1061 | 73 551 437 Core 2 | 2 . . Treads 398 | . . 398 Legs . | . . . Wheels 661 | 71 551 39 Hover . | . . . Flight . | . . . Fastest Speed 50 | 50 90 115 Average Speed 155 | 88 106 228 Slowest Speed 240 | 95 115 240 Overloaded Moves . | . . . Propulsion Burnouts . | . . . Robots Hopped . | . . . Potential Cave-ins . | . . . Cave-ins Triggered . | . . . Exploration Rate (%) 37 | 4 87 21 Regions Visited 2 Branch Regions 1 Pre-discovered Areas 2 | . 1 1 Known Exits Taken . | . . . Unknown Exits Taken 2 | 1 1 . Scrap Searched 3 | . . 3 Spaces Dug 2 | . 2 . Terrain Destroyed 17 | . 17 . Melee 1 | . 1 . Projectile 2 | . 2 . AOE 14 | . 14 . Terrain Rammed . | . . . Walls Destroyed . | . . . Machines Disabled . | . . . Actions | -11 -10 -10 --------- Run | Yrd Mat Sub Total 1443 | 96 784 563 Wait 232 | 1 187 44 Move 1059 | 72 550 437 Hop . | . . . Pick Up 28 | 6 15 7 Fast Attach 6 | 6 . . Attach 6 | 1 . 5 Detach . | . . . Swap 28 | . 9 19 Drop 7 | . 3 4 Fire 74 | 10 19 45 Melee 3 | . 1 2 Ram . | . . . Kick . | . . . Crush . | . . . Escape Stasis . | . . . Rewire . | . . . Trap . | . . . Miscellaneous . | . . . Route ------- -11/Scrapyard -10/Materials (discovered 5 exits: [*Mat x2] / [*Min x2] / *Sub) -10/Subcaves (discovered 1 exit: [*Mat]) History --------- Turn | Location | Event 24 | -11/Scrapyard | Discovered new exit (range 15) 110 | -11/Scrapyard | Entered Materials 213 | -10/Materials | Discovered new exit (range 15) 307 | -10/Materials | Build established: Mutant 362 | -10/Materials | Discovered new exit (range 11) 422 | -10/Materials | Discovered new exit (range 15) 666 | -10/Materials | Learned location of 2 exits from Mines 738 | -10/Materials | Learned Storage stockpile data 758 | -10/Materials | Discovered new exit (range 13) 801 | -10/Materials | Learned location of 1 exit from Storage 810 | -10/Materials | Derelicts attacked the area 955 | -10/Materials | Discovered new exit (range 9) 971 | -10/Materials | Entered Subcaves 1200 | -10/Subcaves | A swath of the cavern ceiling suddenly collapsed 1277 | -10/Subcaves | Discovered new exit (range 6) 1315 | -10/Subcaves | Disturbed a concealed Subdweller 1723 | -10/Subcaves | Visited 4L-MR0's lab 1750 | -10/Subcaves | Found Prototype Device 1756 | -10/Subcaves | Found Gun Armor 2029 | -10/Subcaves | Ambushed by angry Subdweller bent on revenge 2168 | -10/Subcaves | Ambushed by Subdweller buried in earth 2190 | -10/Subcaves | Core integrity fell below 50% 2194 | -10/Subcaves | Core integrity fell below 20% 2199 | -10/Subcaves | Destroyed by CP-HA5(R) with Subdweller Beam Cannon Last Messages --------------- 02028_ MJ-SIP(u) cries out in pain. 02028_ MJ-SIP(u) destroyed. 02029_ 4Q-GQ1(R) angrily emerges from the Twisted Machinery. 02029_ 4Q-GQ1(R): "LEAVESUB!" 02040_ 4Q-GQ1(R) destroyed. 02048_ Acquired 28 matter. 02055_ Acquired Multitool. 02061_ Acquired 47 matter. 02164_ Lgt. Armor Plating destroyed. 02166_ Assault Rifle destroyed. 02169_ P8-GJ3(R): "ARGHSUB!" 02172_ Lgt. Treads destroyed. 02176_ P8-GJ3(R) knocked back. 02182_ P8-GJ3(R) destroyed. 02184_ Battle Cannon destroyed. 02185_ Lgt. Treads destroyed. 02185_ Ion Engine destroyed. 02189_ Assault Rifle destroyed. 02193_ EM Shotgun destroyed. 02196_ MJ-XN3(R) destroyed. Map ----- +----------------------------------------------------+ | ???# ##??????????????????????????????????? | | ???# #??#???????????????????????????????? | | ???# ###??#???????????????????????????????? | | ???# #??#?????????????????????????????????? | | ??## ##????#?#?#?#????????????????????????? | | ???## #???????????????????????????????????? | | ???# ## #??????#????????????????????????????? | | ???# ##?###???????????????????????????????????? | | ???## ###??####????????#????????????????????????? | | ???## #### ######????????????????????????????? | | ???# ## ##???????????????????????????? | | ???# #???????????????????????????? | | ???# ! #????????????????????????????? | | ???# ## %= ####???????#????????????????????? | | ???#### ##??#???????????????????????????? | | ?????# #####???????????????????????????? | | ????## ## #???????????????????????????? | | ???## *! & #??????????#??#?????????????? | | ????# [ &%! ##??????#?? ## ##????????????? | | ????# =###[ #?#######?# "#????????????? | | ????# & ##??# ### ## "#?????????????? | | ???## =&![####?## # %R "#??????????????? | | ?#??## &= &&## ### # * ####???????????? | | ?##??#" """ ] " #???????????? | | ???###### &%! #???????????? | | ???# #### # @ & #???????????? | | #??# "### ###; ## #???????????? | | ???# ###; #?????????????????? | | #??## ##?## ##?????????????????? | | ????### ""#??# #??????????????????? | | ??????## ""##??###;; #####??????????????????? | | ???#???###"##?????# ;; ##?????????????????????? | | ???????#?###????#?# ;; #??????????????????????? | | ???????????????#??### # #????????????????????? | | ????????????????????### ###???????????????????? | | ???????????????#??????# ####?????????????????????? | | ?????????????#????????###????????????????????????? | | ???????????#?????????????????????????????????????? | | ?????????????????????????????????????????????????? | | ?????????????????????#???????????????????????????? | | ????????????#?#??????????????????????????????????? | | ?????????????????????????????????????????????????? | | ?????????????????????????????????????????????????? | | ?????????????????????????????????????????????????? | | ?????????????????????????????????????????????????? | | ?????????????????????????????????????????????????? | | ?????????????????????????????????????????????????? | | ?????????????????????????????????????????????????? | | ?????????????????????????????????????????????????? | | ?????????????????????????????????????????????????? | +----------------------------------------------------+ Best States ------------- Heat Dissipation 25 Energy Generation 10 Energy Capacity 250 Matter Stores 300 Matter Capacity 300 Sight Range 16 Terrain Scan Range 16 Terrain Scan Density 10 Armor Coverage 150 Evasion (%) 42 Recoil Reduction 2 Item Schematics ----------------- None Robot Schematics ------------------ None Fabricated ------------ Nothing Repaired ---------- Nothing Studied --------- None Alien Tech Used ----------------- None Achievements -------------- None Challenges ------------ None Game ------ Seed ReactiveMeleeLegs Manual? 0 Play Time 00:14:31 Cumulative 409.7 hours Start 2026.06.30 @ 20:20:58 End 2026.06.30 @ 20:33:24 Sessions 1 Manual Loads 0 Difficulty Rogue Special Mode None Game No. 306 Rogue 306 Adventurer 0 Explorer 0 Win Type - Total 9 Types 4/0/3/2/0/0/0/0/0/0 Lore% 76 Gallery% 73 Achievement% 50 Wizard Run 0 Options --------- Layout 2 ASCII 0 Keyboard 1 Movement Vi Keybinds 0 Fullscreen 2 Font 32/SmallcapsGlow Map View 77x44 Zoom Use 0% Tactical HUD 1 Map Filters NONE Filters NONE Steam 1 RUN: b8daf37d-5257-41eb-8e49-30ed1654c1e4